[Event "*** Titled Tuesday Blitz"]
[Site "Chess.com"]
[Date "2021.02.16"]
[Round "6"]
[White "Atco84"]
[Black "Novoselski"]
[Result "1-0"]
[WhiteElo "2457"]
[BlackElo "2308"]
[TimeControl "180+1"]
[EndTime "11:07:23 PST"]
[Termination "Atco84 won by resignation"]

1. d4 {[%clk 0:03:00.9]} 1... e6 {[%clk 0:02:56.6]} 2. c4 {[%clk 0:02:58.9]}
2... Nf6 {[%clk 0:02:55.4]} 3. g3 {[%clk 0:02:58.8]} 3... c5 {[%clk 0:02:54.8]}
4. d5 {[%clk 0:02:58.3]} 4... exd5 {[%clk 0:02:54]} 5. cxd5 {[%clk 0:02:58.7]}
5... d6 {[%clk 0:02:54.4]} 6. Nc3 {[%clk 0:02:54.2]} 6... g6 {[%clk 0:02:54.5]}
7. Bg2 {[%clk 0:02:49.9]} 7... Bg7 {[%clk 0:02:54.8]} 8. Nf3 {[%clk 0:02:49.6]}
8... O-O {[%clk 0:02:55.7]} 9. O-O {[%clk 0:02:49.9]} 9... Re8 {[%clk
0:02:55.7]} 10. Nd2 {[%clk 0:02:44]} 10... Na6 {[%clk 0:02:54.6]} 11. Nc4 {[%clk
0:02:41]} 11... Nc7 {[%clk 0:02:53.9]} 12. Bf4 {[%clk 0:02:37.4]} 12... Bf8
{[%clk 0:02:50]} 13. a4 {[%clk 0:02:35.7]} 13... b6 {[%clk 0:02:49.3]} 14. Nb5
{[%clk 0:02:19]} 14... Nxb5 {[%clk 0:02:43.6]} 15. axb5 {[%clk 0:02:19.9]} 15...
Nh5 {[%clk 0:02:39.5]} 16. Bd2 {[%clk 0:02:14.7]} 16... Bd7 {[%clk 0:02:32]} 17.
Na3 {[%clk 0:01:55.4]} 17... f5 {[%clk 0:02:22.9]} 18. Bc3 {[%clk 0:01:51.3]}
18... Nf6 {[%clk 0:02:19.5]} 19. e3 {[%clk 0:01:46.3]} 19... Ne4 {[%clk
0:02:16.3]} 20. Qb3 {[%clk 0:01:46.4]} 20... Bh6 {[%clk 0:02:04.7]} 21. Nc4
{[%clk 0:01:44]} 21... Qe7 {[%clk 0:01:55.3]} 22. Ra6 {[%clk 0:01:39.1]} 22...
Bc8 {[%clk 0:01:40.5]} 23. Ra4 {[%clk 0:01:32.9]} 23... Bb7 {[%clk 0:01:39.7]}
24. Rd1 {[%clk 0:01:23.9]} 24... Qc7 {[%clk 0:01:24.3]} 25. Nd2 {[%clk
0:01:14.6]} 25... Nxc3 {[%clk 0:01:08.7]} 26. bxc3 {[%clk 0:01:10.6]} 26... Bf8
{[%clk 0:00:57.1]} 27. Rda1 {[%clk 0:01:07.9]} 27... Bc8 {[%clk 0:00:56]} 28.
Qa2 {[%clk 0:00:54]} 28... Re7 {[%clk 0:00:55.2]} 29. e4 {[%clk 0:00:49.1]}
29... f4 {[%clk 0:00:53.7]} 30. gxf4 {[%clk 0:00:48.4]} 30... Rf7 {[%clk
0:00:53.4]} 31. e5 {[%clk 0:00:46.8]} 31... Bh6 {[%clk 0:00:45.8]} 32. Nc4
{[%clk 0:00:38]} 32... Bxf4 {[%clk 0:00:39.2]} 33. Nxd6 {[%clk 0:00:36.9]} 33...
Rg7 {[%clk 0:00:33.1]} 34. Rxf4 {[%clk 0:00:34.5]} 1-0

[Event "*** Titled Tuesday Blitz"]
[Site "Chess.com"]
[Date "2021.02.16"]
[Round "6"]
[White "dragos420"]
[Black "bocah_sakit"]
[Result "0-1"]
[WhiteElo "2524"]
[BlackElo "2838"]
[TimeControl "180+1"]
[EndTime "11:07:24 PST"]
[Termination "bocah_sakit won by resignation"]

1. e4 {[%clk 0:03:00.9]} 1... c5 {[%clk 0:02:57.9]} 2. Nf3 {[%clk 0:03:01]} 2...
Nc6 {[%clk 0:02:57.2]} 3. Bb5 {[%clk 0:03:00.5]} 3... g6 {[%clk 0:02:57.3]} 4.
O-O {[%clk 0:02:58.3]} 4... Bg7 {[%clk 0:02:55.6]} 5. Nc3 {[%clk 0:02:58.8]}
5... e5 {[%clk 0:02:53.8]} 6. a3 {[%clk 0:02:57.8]} 6... Nge7 {[%clk 0:02:53.1]}
7. b4 {[%clk 0:02:57.9]} 7... d6 {[%clk 0:02:52.3]} 8. bxc5 {[%clk 0:02:57.4]}
8... dxc5 {[%clk 0:02:53.2]} 9. d3 {[%clk 0:02:58.3]} 9... O-O {[%clk 0:02:53]}
10. Bc4 {[%clk 0:02:51.7]} 10... h6 {[%clk 0:02:51.7]} 11. Be3 {[%clk
0:02:42.1]} 11... b6 {[%clk 0:02:51]} 12. h3 {[%clk 0:02:42]} 12... Bb7 {[%clk
0:02:49.8]} 13. Nd5 {[%clk 0:02:37.1]} 13... Nc8 {[%clk 0:02:45.9]} 14. Ba2
{[%clk 0:02:30.9]} 14... Kh7 {[%clk 0:02:44.8]} 15. Qd2 {[%clk 0:02:23.8]} 15...
f5 {[%clk 0:02:43.4]} 16. Bg5 {[%clk 0:01:53.8]} 16... Qd7 {[%clk 0:02:42.4]}
17. Bh4 {[%clk 0:01:32.4]} 17... Nd6 {[%clk 0:02:41.7]} 18. exf5 {[%clk
0:01:29.9]} 18... gxf5 {[%clk 0:02:40.7]} 19. Rfe1 {[%clk 0:01:28.4]} 19... Rae8
{[%clk 0:02:40.2]} 20. Rad1 {[%clk 0:01:17.5]} 20... Nd4 {[%clk 0:02:34.7]} 21.
Nxd4 {[%clk 0:01:15.7]} 21... cxd4 {[%clk 0:02:35.6]} 22. c4 {[%clk 0:01:03.2]}
22... f4 {[%clk 0:02:20.9]} 23. f3 {[%clk 0:01:00.4]} 23... Nf5 {[%clk
0:02:21.2]} 24. Bf2 {[%clk 0:00:59.9]} 24... Ne3 {[%clk 0:02:21.8]} 25. Rc1
{[%clk 0:00:56]} 25... Re6 {[%clk 0:02:13.5]} 26. Bxe3 {[%clk 0:00:32.4]} 26...
fxe3 {[%clk 0:02:14.4]} 27. Qe2 {[%clk 0:00:32.4]} 27... Rg6 {[%clk 0:02:15]}
28. Kh2 {[%clk 0:00:26.6]} 28... Bxd5 {[%clk 0:01:35]} 29. cxd5 {[%clk
0:00:27.5]} 29... e4 {[%clk 0:01:34.6]} 30. dxe4 {[%clk 0:00:25.7]} 30... Be5+
{[%clk 0:01:35.2]} 31. Kh1 {[%clk 0:00:25.3]} 31... Qf7 {[%clk 0:01:30.8]} 32.
Rf1 {[%clk 0:00:14.8]} 32... Qf4 {[%clk 0:01:30.8]} 33. g4 {[%clk 0:00:15.3]}
33... d3 {[%clk 0:01:28]} 34. Qg2 {[%clk 0:00:14.5]} 34... e2 {[%clk 0:01:25.9]}
35. Bb1 {[%clk 0:00:13.6]} 35... exf1=Q+ {[%clk 0:01:25.1]} 36. Rxf1 {[%clk
0:00:14.5]} 36... d2 {[%clk 0:01:24.4]} 37. Rd1 {[%clk 0:00:12.7]} 37... Rc8
{[%clk 0:01:20.4]} 38. Bd3 {[%clk 0:00:11.2]} 38... Rc1 {[%clk 0:01:20.5]} 39.
Be2 {[%clk 0:00:10.9]} 39... Qe3 {[%clk 0:01:18.9]} 40. Qf1 {[%clk 0:00:09.7]}
40... Rxd1 {[%clk 0:01:19.2]} 41. Qxd1 {[%clk 0:00:10.6]} 41... Qf2 {[%clk
0:01:19.2]} 42. f4 {[%clk 0:00:08.3]} 42... Bxf4 {[%clk 0:01:18.9]} 0-1

[Event "*** Titled Tuesday Blitz"]
[Site "Chess.com"]
[Date "2021.02.16"]
[Round "6"]
[White "platy3"]
[Black "Harry_Rakkel"]
[Result "1-0"]
[WhiteElo "2852"]
[BlackElo "2687"]
[TimeControl "180+1"]
[EndTime "11:07:25 PST"]
[Termination "platy3 won by resignation"]

1. e4 {[%clk 0:02:59.3]} 1... c5 {[%clk 0:02:59.1]} 2. Nf3 {[%clk 0:02:57.2]}
2... e6 {[%clk 0:02:58.9]} 3. d4 {[%clk 0:02:56.9]} 3... cxd4 {[%clk 0:02:59.8]}
4. Nxd4 {[%clk 0:02:57.6]} 4... Nc6 {[%clk 0:02:59.5]} 5. Nxc6 {[%clk
0:02:56.9]} 5... bxc6 {[%clk 0:02:58.7]} 6. Bd3 {[%clk 0:02:57.8]} 6... d5
{[%clk 0:02:57.6]} 7. O-O {[%clk 0:02:58.7]} 7... Nf6 {[%clk 0:02:57.3]} 8. Nc3
{[%clk 0:02:55.1]} 8... Be7 {[%clk 0:02:55.8]} 9. Qe2 {[%clk 0:02:54.9]} 9...
O-O {[%clk 0:02:52.9]} 10. Bd2 {[%clk 0:02:51.6]} 10... c5 {[%clk 0:02:51.5]}
11. b3 {[%clk 0:02:42.1]} 11... Bb7 {[%clk 0:02:48.6]} 12. Rae1 {[%clk
0:02:38.2]} 12... Rc8 {[%clk 0:02:25.4]} 13. exd5 {[%clk 0:02:35.4]} 13... Nxd5
{[%clk 0:02:21.3]} 14. Qf3 {[%clk 0:02:23.9]} 14... Qc7 {[%clk 0:01:37.5]} 15.
Qh3 {[%clk 0:02:14.8]} 15... g6 {[%clk 0:01:36.1]} 16. Qh6 {[%clk 0:01:59.9]}
16... Bf6 {[%clk 0:01:26.4]} 17. Ne4 {[%clk 0:01:59.6]} 17... Bg7 {[%clk
0:01:26.2]} 18. Qh4 {[%clk 0:01:59.2]} 18... Qd8 {[%clk 0:01:07.4]} 19. Bg5
{[%clk 0:01:57.2]} 19... f6 {[%clk 0:01:06.6]} 20. Bh6 {[%clk 0:01:55.6]} 20...
Bxh6 {[%clk 0:00:40.8]} 21. Qxh6 {[%clk 0:01:56.5]} 21... Rf7 {[%clk 0:00:39.1]}
22. Bc4 {[%clk 0:01:51.2]} 22... Qe7 {[%clk 0:00:31.8]} 23. Qh3 {[%clk
0:01:14.6]} 23... Rd8 {[%clk 0:00:27.1]} 24. Nc3 {[%clk 0:01:06.8]} 24... Nc7
{[%clk 0:00:25.4]} 25. Re2 {[%clk 0:01:03.9]} 25... Kg7 {[%clk 0:00:24.8]} 26.
Rfe1 {[%clk 0:01:04]} 26... Bc8 {[%clk 0:00:21]} 27. Qg3 {[%clk 0:00:59.3]}
27... Rd4 {[%clk 0:00:19.9]} 28. h3 {[%clk 0:00:58.1]} 28... Qd6 {[%clk
0:00:19.8]} 29. Qxd6 {[%clk 0:00:47.1]} 29... Rxd6 {[%clk 0:00:20.7]} 30. Ne4
{[%clk 0:00:47.9]} 30... Rc6 {[%clk 0:00:20.7]} 31. Rd2 {[%clk 0:00:48.2]} 31...
Re7 {[%clk 0:00:20.1]} 32. Rd8 {[%clk 0:00:46.1]} 32... h6 {[%clk 0:00:19.6]}
33. Rxc8 {[%clk 0:00:45.3]} 1-0

[Event "*** Titled Tuesday Blitz"]
[Site "Chess.com"]
[Date "2021.02.16"]
[Round "6"]
[White "WeAintSurePal"]
[Black "GMJustin"]
[Result "0-1"]
[WhiteElo "2441"]
[BlackElo "2323"]
[TimeControl "180+1"]
[EndTime "11:07:25 PST"]
[Termination "GMJustin won by resignation"]

1. d4 {[%clk 0:03:00.9]} 1... Nf6 {[%clk 0:02:51.3]} 2. Nc3 {[%clk 0:02:59.7]}
2... e6 {[%clk 0:02:41.5]} 3. Nf3 {[%clk 0:02:53.2]} 3... d5 {[%clk 0:02:34]} 4.
Bf4 {[%clk 0:02:51.4]} 4... Bb4 {[%clk 0:02:27.4]} 5. Qd3 {[%clk 0:02:50.8]}
5... c5 {[%clk 0:02:12.4]} 6. dxc5 {[%clk 0:02:41.3]} 6... Ne4 {[%clk
0:01:56.3]} 7. Bxb8 {[%clk 0:02:35.6]} 7... Bxc3+ {[%clk 0:01:47.3]} 8. bxc3
{[%clk 0:02:35.7]} 8... Rxb8 {[%clk 0:01:47.6]} 9. e3 {[%clk 0:02:26.9]} 9...
O-O {[%clk 0:01:42.9]} 10. Qd4 {[%clk 0:02:20.5]} 10... Qa5 {[%clk 0:01:36.5]}
11. Bd3 {[%clk 0:02:17.3]} 11... Qxc3+ {[%clk 0:01:21.9]} 12. Ke2 {[%clk
0:02:15.3]} 12... Qxc5 {[%clk 0:01:12.8]} 13. Bxe4 {[%clk 0:02:02.8]} 13... Qxd4
{[%clk 0:01:12.8]} 14. Bxh7+ {[%clk 0:01:58.4]} 14... Kxh7 {[%clk 0:01:13.7]}
15. exd4 {[%clk 0:01:59]} 15... Bd7 {[%clk 0:01:13.4]} 16. a4 {[%clk 0:01:55.3]}
16... Rfc8 {[%clk 0:01:12.4]} 17. Kd2 {[%clk 0:01:55.3]} 17... f6 {[%clk
0:01:01.8]} 18. c3 {[%clk 0:01:50.9]} 18... a5 {[%clk 0:00:57.9]} 19. Rhb1
{[%clk 0:01:50.4]} 19... Rc4 {[%clk 0:00:52]} 20. Rb6 {[%clk 0:01:48.3]} 20...
Rxa4 {[%clk 0:00:39.4]} 21. Rxa4 {[%clk 0:01:47.7]} 21... Bxa4 {[%clk
0:00:39.8]} 22. Rxe6 {[%clk 0:01:46.5]} 22... Bc6 {[%clk 0:00:39.9]} 23. Kc2
{[%clk 0:01:45]} 23... Ra8 {[%clk 0:00:31.3]} 24. Kb2 {[%clk 0:01:43.2]} 24...
Ra6 {[%clk 0:00:31.1]} 25. Ka3 {[%clk 0:01:40.2]} 25... Rb6 {[%clk 0:00:21]} 26.
Nd2 {[%clk 0:01:37.5]} 26... Rb5 {[%clk 0:00:20]} 27. Nb3 {[%clk 0:01:32.3]}
27... Kg6 {[%clk 0:00:18.1]} 28. Nc5 {[%clk 0:01:25.2]} 28... Rb1 {[%clk
0:00:15.8]} 29. Nd3 {[%clk 0:01:17.3]} 29... Rg1 {[%clk 0:00:12.2]} 30. g3
{[%clk 0:01:16.5]} 30... Kf7 {[%clk 0:00:11.9]} 31. Re1 {[%clk 0:01:08.8]} 31...
Rg2 {[%clk 0:00:08.9]} 32. h4 {[%clk 0:01:06.3]} 32... Bb5 {[%clk 0:00:08.6]}
33. Nf4 {[%clk 0:01:04.2]} 33... Rxf2 {[%clk 0:00:08.7]} 34. Nxd5 {[%clk
0:01:04.4]} 34... Bc4 {[%clk 0:00:09]} 0-1

[Event "*** Titled Tuesday Blitz"]
[Site "Chess.com"]
[Date "2021.02.16"]
[Round "6"]
[White "andrzej"]
[Black "MIJuanReyesRosa"]
[Result "1-0"]
[WhiteElo "2312"]
[BlackElo "2116"]
[TimeControl "180+1"]
[EndTime "11:07:30 PST"]
[Termination "andrzej won by resignation"]

1. e4 {[%clk 0:03:00.9]} 1... c6 {[%clk 0:02:59.2]} 2. d4 {[%clk 0:02:59.3]}
2... d5 {[%clk 0:02:59]} 3. exd5 {[%clk 0:03:00.2]} 3... cxd5 {[%clk 0:02:58.3]}
4. Bd3 {[%clk 0:03:00.6]} 4... Nf6 {[%clk 0:02:53.2]} 5. c3 {[%clk 0:02:59.5]}
5... Nc6 {[%clk 0:02:48.7]} 6. Bf4 {[%clk 0:02:58.9]} 6... g6 {[%clk 0:02:43.6]}
7. Nf3 {[%clk 0:02:57.3]} 7... Bg7 {[%clk 0:02:42.9]} 8. O-O {[%clk 0:02:57.3]}
8... Bf5 {[%clk 0:02:42]} 9. Bxf5 {[%clk 0:02:56.3]} 9... gxf5 {[%clk
0:02:41.2]} 10. Ne1 {[%clk 0:02:56.8]} 10... O-O {[%clk 0:02:40.3]} 11. Nd3
{[%clk 0:02:56.8]} 11... Rc8 {[%clk 0:02:36.3]} 12. Nd2 {[%clk 0:02:55.7]} 12...
e6 {[%clk 0:02:30.8]} 13. Nf3 {[%clk 0:02:55.5]} 13... Ne4 {[%clk 0:02:28.7]}
14. Nfe5 {[%clk 0:02:55.4]} 14... Nxe5 {[%clk 0:02:13.2]} 15. Nxe5 {[%clk
0:02:55.4]} 15... b5 {[%clk 0:01:15.9]} 16. f3 {[%clk 0:02:50.9]} 16... Nd6
{[%clk 0:01:11.4]} 17. a3 {[%clk 0:02:40.3]} 17... Nc4 {[%clk 0:01:10.4]} 18.
Nd3 {[%clk 0:02:36.8]} 18... Qf6 {[%clk 0:00:56.2]} 19. Qe1 {[%clk 0:02:30]}
19... Bh6 {[%clk 0:00:51.5]} 20. Qc1 {[%clk 0:01:56.1]} 20... Bxf4 {[%clk
0:00:47.6]} 21. Qxf4 {[%clk 0:01:57]} 21... Kg7 {[%clk 0:00:39.2]} 22. Kh1
{[%clk 0:01:56.5]} 22... Qh6 {[%clk 0:00:38.2]} 23. Qxh6+ {[%clk 0:01:37.7]}
23... Kxh6 {[%clk 0:00:37.7]} 24. Rae1 {[%clk 0:01:34.5]} 24... a6 {[%clk
0:00:33.6]} 25. g4 {[%clk 0:01:31.3]} 25... fxg4 {[%clk 0:00:31.7]} 26. fxg4
{[%clk 0:01:32.2]} 26... Kg7 {[%clk 0:00:22.9]} 27. h4 {[%clk 0:01:31.6]} 27...
h6 {[%clk 0:00:19.4]} 28. Kh2 {[%clk 0:01:31.4]} 28... Nd6 {[%clk 0:00:12.4]}
29. Nc5 {[%clk 0:01:11.1]} 29... a5 {[%clk 0:00:10.4]} 30. Re2 {[%clk
0:01:11.3]} 30... b4 {[%clk 0:00:09.4]} 31. axb4 {[%clk 0:01:10.5]} 31... axb4
{[%clk 0:00:09.6]} 32. cxb4 {[%clk 0:01:11.1]} 32... Ra8 {[%clk 0:00:06.8]} 33.
Ref2 {[%clk 0:01:08.1]} 33... Ra2 {[%clk 0:00:04.8]} 34. Nxe6+ {[%clk
0:01:07.8]} 1-0

[Event "*** Titled Tuesday Blitz"]
[Site "Chess.com"]
[Date "2021.02.16"]
[Round "6"]
[White "WilliamSchill"]
[Black "HElissalt"]
[Result "0-1"]
[WhiteElo "2042"]
[BlackElo "2210"]
[TimeControl "180+1"]
[EndTime "11:07:32 PST"]
[Termination "HElissalt won on time"]

1. e4 {[%clk 0:03:00.9]} 1... d6 {[%clk 0:02:40.5]} 2. d4 {[%clk 0:03:00.2]}
2... Nf6 {[%clk 0:02:37.3]} 3. Nc3 {[%clk 0:03:00.2]} 3... e5 {[%clk 0:02:37]}
4. Nf3 {[%clk 0:02:56.2]} 4... Nbd7 {[%clk 0:02:36]} 5. Bc4 {[%clk 0:02:51.9]}
5... Be7 {[%clk 0:02:36]} 6. a4 {[%clk 0:02:48.8]} 6... O-O {[%clk 0:02:35.8]}
7. O-O {[%clk 0:02:48.7]} 7... c6 {[%clk 0:02:33.6]} 8. a5 {[%clk 0:02:41.2]}
8... Rb8 {[%clk 0:02:32.4]} 9. Re1 {[%clk 0:02:10.3]} 9... Qc7 {[%clk 0:02:31]}
10. b3 {[%clk 0:02:07.9]} 10... b5 {[%clk 0:02:26.4]} 11. axb6 {[%clk
0:02:07.5]} 11... axb6 {[%clk 0:02:26.2]} 12. dxe5 {[%clk 0:01:57.4]} 12... dxe5
{[%clk 0:02:25.3]} 13. Bb2 {[%clk 0:01:57.2]} 13... b5 {[%clk 0:02:24.9]} 14.
Bf1 {[%clk 0:01:54.7]} 14... Bc5 {[%clk 0:02:23.8]} 15. h3 {[%clk 0:01:40.8]}
15... Qb6 {[%clk 0:02:20.3]} 16. Qe2 {[%clk 0:01:37.3]} 16... Re8 {[%clk
0:02:17.4]} 17. Nd1 {[%clk 0:01:32.3]} 17... Nh5 {[%clk 0:02:01.6]} 18. Ne3
{[%clk 0:01:21.6]} 18... Nf4 {[%clk 0:02:00]} 19. Qd1 {[%clk 0:01:16.1]} 19...
f6 {[%clk 0:01:57]} 20. Ba3 {[%clk 0:00:59.1]} 20... Nf8 {[%clk 0:01:51.4]} 21.
Bxc5 {[%clk 0:00:58.1]} 21... Qxc5 {[%clk 0:01:50.9]} 22. Nf5 {[%clk 0:00:48.7]}
22... Bxf5 {[%clk 0:01:49.7]} 23. exf5 {[%clk 0:00:48.2]} 23... Red8 {[%clk
0:01:36.2]} 24. Qc1 {[%clk 0:00:47.9]} 24... Qc3 {[%clk 0:01:31.2]} 25. Ra7
{[%clk 0:00:43.4]} 25... Nxh3+ {[%clk 0:01:24.7]} 26. gxh3 {[%clk 0:00:40.5]}
26... Qxf3 {[%clk 0:01:24.8]} 27. Bg2 {[%clk 0:00:27]} 27... Qxf5 {[%clk
0:01:24.6]} 28. Bxc6 {[%clk 0:00:27]} 28... Qxh3 {[%clk 0:01:22.8]} 29. Bg2
{[%clk 0:00:23]} 29... Qg4 {[%clk 0:01:22.5]} 30. Qe3 {[%clk 0:00:20.1]} 30...
Rd1 {[%clk 0:01:17.2]} 31. Rxd1 {[%clk 0:00:19.1]} 31... Qxd1+ {[%clk
0:01:16.5]} 32. Kh2 {[%clk 0:00:19.4]} 32... Qxc2 {[%clk 0:01:08]} 33. Bd5+
{[%clk 0:00:17.6]} 33... Kh8 {[%clk 0:01:06.7]} 34. Be4 {[%clk 0:00:16.8]} 34...
Qd1 {[%clk 0:00:59]} 35. Bf3 {[%clk 0:00:10.3]} 35... Qd4 {[%clk 0:00:56.8]} 36.
Qxd4 {[%clk 0:00:01.3]} 36... exd4 {[%clk 0:00:56.5]} 0-1

[Event "*** Titled Tuesday Blitz"]
[Site "Chess.com"]
[Date "2021.02.16"]
[Round "6"]
[White "bait_or_mate"]
[Black "MartinMatthiesen"]
[Result "1-0"]
[WhiteElo "2551"]
[BlackElo "2366"]
[TimeControl "180+1"]
[EndTime "11:07:33 PST"]
[Termination "bait_or_mate won by resignation"]

1. d4 {[%clk 0:03:00.9]} 1... Nf6 {[%clk 0:02:58.9]} 2. c4 {[%clk 0:03:01.2]}
2... e6 {[%clk 0:02:59.1]} 3. Nf3 {[%clk 0:03:01.2]} 3... c5 {[%clk 0:02:55.4]}
4. Nc3 {[%clk 0:03:00.7]} 4... cxd4 {[%clk 0:02:54.5]} 5. Nxd4 {[%clk
0:03:01.6]} 5... Nc6 {[%clk 0:02:54.5]} 6. g3 {[%clk 0:03:01.6]} 6... Qb6 {[%clk
0:02:53.3]} 7. Nb3 {[%clk 0:02:57.6]} 7... Ne5 {[%clk 0:02:49.6]} 8. Bg2 {[%clk
0:02:46.3]} 8... Nxc4 {[%clk 0:02:48.7]} 9. O-O {[%clk 0:02:46]} 9... d5 {[%clk
0:02:47.7]} 10. e4 {[%clk 0:02:32.5]} 10... Bb4 {[%clk 0:02:47.1]} 11. exd5
{[%clk 0:02:29.5]} 11... Bxc3 {[%clk 0:02:46.4]} 12. bxc3 {[%clk 0:02:28.8]}
12... Nxd5 {[%clk 0:02:44.4]} 13. Qg4 {[%clk 0:02:22.3]} 13... Qc7 {[%clk
0:02:26.1]} 14. Qxg7 {[%clk 0:02:18.4]} 14... Qe5 {[%clk 0:02:26.1]} 15. Qg4
{[%clk 0:02:08.6]} 15... Qxc3 {[%clk 0:02:19.4]} 16. Bh6 {[%clk 0:01:28.8]}
16... Qf6 {[%clk 0:01:14.1]} 17. Bg7 {[%clk 0:01:02]} 17... Rg8 {[%clk
0:01:13.6]} 18. Qxc4 {[%clk 0:00:59]} 18... Rxg7 {[%clk 0:01:11.6]} 19. Bxd5
{[%clk 0:00:57.6]} 19... exd5 {[%clk 0:01:11.2]} 20. Qxd5 {[%clk 0:00:41.9]}
20... Rg5 {[%clk 0:01:07.7]} 21. Qe4+ {[%clk 0:00:34.8]} 21... Kf8 {[%clk
0:01:07.1]} 22. Rac1 {[%clk 0:00:18.2]} 22... Bd7 {[%clk 0:00:42.6]} 23. Qxb7
{[%clk 0:00:14.9]} 23... Rd8 {[%clk 0:00:39.8]} 24. Rfd1 {[%clk 0:00:14.2]}
24... Re5 {[%clk 0:00:27.8]} 25. Rxd7 {[%clk 0:00:10.8]} 25... Rxd7 {[%clk
0:00:26.8]} 26. Qxd7 {[%clk 0:00:11.7]} 1-0

[Event "*** Titled Tuesday Blitz"]
[Site "Chess.com"]
[Date "2021.02.16"]
[Round "6"]
[White "semchik73"]
[Black "frenchpin"]
[Result "0-1"]
[WhiteElo "2342"]
[BlackElo "2497"]
[TimeControl "180+1"]
[EndTime "11:07:34 PST"]
[Termination "frenchpin won by resignation"]

1. Nf3 {[%clk 0:03:00.6]} 1... e6 {[%clk 0:03:00.9]} 2. d4 {[%clk 0:03:00.3]}
2... d5 {[%clk 0:03:01.8]} 3. c4 {[%clk 0:03:00.5]} 3... Nf6 {[%clk 0:03:02.2]}
4. Nc3 {[%clk 0:03:00.9]} 4... dxc4 {[%clk 0:03:02.5]} 5. e4 {[%clk 0:02:59.6]}
5... Bb4 {[%clk 0:03:02.6]} 6. Bg5 {[%clk 0:03:00]} 6... c5 {[%clk 0:02:59.4]}
7. Bxc4 {[%clk 0:02:47.9]} 7... cxd4 {[%clk 0:02:58.7]} 8. Nxd4 {[%clk 0:02:42]}
8... Qa5 {[%clk 0:02:59.1]} 9. Bd2 {[%clk 0:02:38.2]} 9... O-O {[%clk
0:02:52.2]} 10. Nb3 {[%clk 0:02:30.5]} 10... Qc7 {[%clk 0:02:48.6]} 11. Bd3
{[%clk 0:02:27.9]} 11... Rd8 {[%clk 0:02:47.5]} 12. Qe2 {[%clk 0:02:27.5]} 12...
Nc6 {[%clk 0:02:43]} 13. O-O {[%clk 0:02:24.4]} 13... Ne5 {[%clk 0:02:38.6]} 14.
Nb5 {[%clk 0:02:22.1]} 14... Qe7 {[%clk 0:02:31.8]} 15. Bxb4 {[%clk 0:02:20]}
15... Qxb4 {[%clk 0:02:32.7]} 16. Rfd1 {[%clk 0:02:14.4]} 16... Bd7 {[%clk
0:02:23.9]} 17. N5d4 {[%clk 0:02:04.6]} 17... Nxd3 {[%clk 0:02:18.5]} 18. Qxd3
{[%clk 0:02:01.8]} 18... e5 {[%clk 0:02:15.2]} 19. a3 {[%clk 0:01:58.7]} 19...
Qb6 {[%clk 0:01:51.5]} 20. Nf3 {[%clk 0:01:55]} 20... Ba4 {[%clk 0:01:48.7]} 21.
Qc3 {[%clk 0:01:39.6]} 21... Rxd1+ {[%clk 0:01:46.2]} 22. Rxd1 {[%clk
0:01:38.9]} 22... Qxb3 {[%clk 0:01:46.7]} 23. Qxb3 {[%clk 0:01:34.9]} 23... Bxb3
{[%clk 0:01:47.6]} 24. Rd3 {[%clk 0:01:34.9]} 24... Rc8 {[%clk 0:01:45.2]} 25.
h3 {[%clk 0:01:33]} 25... Bc2 {[%clk 0:01:40.7]} 26. Re3 {[%clk 0:01:29.7]}
26... Bxe4 {[%clk 0:01:38.7]} 27. Nxe5 {[%clk 0:01:29.7]} 27... Bd5 {[%clk
0:01:30.9]} 28. Nd3 {[%clk 0:01:27.1]} 28... Kf8 {[%clk 0:01:28.2]} 29. g4
{[%clk 0:01:27]} 29... h6 {[%clk 0:01:26.8]} 30. Ne5 {[%clk 0:01:20.3]} 30...
Be6 {[%clk 0:01:25.6]} 31. Nd3 {[%clk 0:01:17.2]} 31... Nd5 {[%clk 0:01:25.1]}
32. Re5 {[%clk 0:01:16.5]} 32... Ke7 {[%clk 0:01:23.5]} 33. f4 {[%clk
0:01:16.4]} 33... Kd6 {[%clk 0:01:23.8]} 34. Re2 {[%clk 0:01:14]} 34... g6
{[%clk 0:01:22.4]} 35. Ne5 {[%clk 0:01:12.3]} 35... Nxf4 {[%clk 0:01:19.2]} 36.
Re4 {[%clk 0:01:10.1]} 36... Nxh3+ {[%clk 0:01:17]} 37. Kh2 {[%clk 0:01:10.5]}
37... Ng5 {[%clk 0:01:17.2]} 38. Re2 {[%clk 0:01:10.5]} 38... Rc5 {[%clk
0:01:09]} 39. Nd3 {[%clk 0:01:09.9]} 39... Rd5 {[%clk 0:01:03.9]} 40. Nb4 {[%clk
0:01:08.3]} 40... Rd1 {[%clk 0:01:03.8]} 41. Rc2 {[%clk 0:01:07.4]} 41... Nf3+
{[%clk 0:01:01.3]} 42. Kg3 {[%clk 0:01:06.8]} 42... Ne5 {[%clk 0:00:59.6]} 43.
Re2 {[%clk 0:01:04]} 43... Bxg4 {[%clk 0:00:58.4]} 44. Re4 {[%clk 0:01:03.4]}
44... Bf5 {[%clk 0:00:57.7]} 45. Rf4 {[%clk 0:01:02.8]} 45... h5 {[%clk
0:00:56.6]} 46. Kh4 {[%clk 0:00:57.7]} 46... Rg1 {[%clk 0:00:53.6]} 47. Rf2
{[%clk 0:00:55.4]} 47... Rg4+ {[%clk 0:00:52.2]} 48. Kh3 {[%clk 0:00:55.7]}
48... Rxb4+ {[%clk 0:00:53.1]} 49. Kh2 {[%clk 0:00:54.7]} 49... Ng4+ {[%clk
0:00:50.8]} 50. Kg3 {[%clk 0:00:53.8]} 50... Nxf2 {[%clk 0:00:51.7]} 51. axb4
{[%clk 0:00:53.3]} 51... Nd3 {[%clk 0:00:52.6]} 52. Kh4 {[%clk 0:00:53.3]} 52...
Nxb4 {[%clk 0:00:52]} 53. Kg5 {[%clk 0:00:54.2]} 53... Nd5 {[%clk 0:00:52.9]}
54. Kh4 {[%clk 0:00:53.4]} 54... b5 {[%clk 0:00:53.8]} 55. Kg3 {[%clk
0:00:53.5]} 55... b4 {[%clk 0:00:54.7]} 0-1